Cogmind - Beta 11.1 *** ADVENTURER MODE // 2022.05.05 @ 08:57:42 Player: An Result: Destroyed by G-50 Soldier with Heavy Laser Performance ------------- Evolutions (4) 2000 Regions Visited (16) 3200 Robots Destroyed (139) 695 Value Destroyed (4692) 4692 Prototype IDs (35) 700 Alien Tech Used (0) 0 Bonus (3820) 3820 TOTAL SCORE: 15107 Bonus ------- High Alert Combat Kills 304 Follower Combat Kills 1656 Entered Garrisons 200 Used RIF Installer 500 Aligned with FarCom 300 Met Zhirov 300 A7 Reached Mainframe 300 Met R17 at Cetus 500 Friendly Fire -240 Cogmind --------- Core Integrity 0/850 Matter 252/300 Energy 747/750 System Corruption 0% Temperature Cool (70) Movement Walking (190) Ox1 Location -6/Hub_04(d) Parts ------- > --- POWER (1) -------- Quantum Reactor > --- PROPULSION (4) --- Carbon-fiber Leg Myomer Leg > --- UTILITY (8) ------ Medium Storage Unit Improved Energy Well Enhanced Optical Array Improved Signal Interpreter Centrium Medium Armor Plating Hacking Suite Improved Hacking Suite > --- WEAPON (2) ------- Advanced Variable Charge Gun Advanced KE Penetrator > --- INVENTORY (10) --- Improved Heat Sink Advanced Weight Redist. System Cloak of Protection Centrium Medium Armor Plating Centrium Medium Armor Plating Remote Datajack Power Sword Phasing Sabre Peak State ------------ > --- POWER ------------ Quantum Reactor > --- PROPULSION ------- Myomer Leg Myomer Leg Myomer Leg Myomer Leg > --- UTILITY ---------- Medium Storage Unit Improved Energy Well Enhanced Optical Array Improved Signal Interpreter Centrium Medium Armor Plating Centrium Medium Armor Plating Centrium Medium Armor Plating Hacking Suite > --- WEAPON ----------- Advanced Variable Charge Gun Advanced KE Penetrator > --- INVENTORY -------- Quantum Reactor Carbon-fiber Leg Myomer Leg Improved Heat Sink Advanced Weight Redist. System Advanced Melee Analysis Suite Cloak of Protection Remote Datajack Power Sword Phasing Sabre [Rating: 104] Favorites ----------- Power Light Nuclear Core Engine Light Ion Engine Power Core Light Nuclear Core Reactor Quantum Reactor Propulsion Myomer Leg Treads Light Treads Leg Myomer Leg Flight Unit Cesium-ion Thruster Utility Hacking Suite Device Terrain Scanner Storage Medium Storage Unit Processor Enhanced Optical Array Hackware Hacking Suite Protection Improved Light Armor Plating Weapon Light Assault Rifle Energy Gun Gatling Laser Ballistic Gun Light Assault Rifle Ballistic Cannon Improved Light Cannon Special Weapon Mining Laser Slashing Weapon Power Sword Piercing Weapon Heavy Pick Special Melee Weapon Improved Datajack Build | -11 -10 -9 -9 -9 -8 -8 -8 -8 -7 -7 -7 -6 -6 -6 -6 -6 ------- Run | Scr Mat Mat Min Exi Min Mat Gar Mat Fac Was Fac Fac Ext Cet Arc Hub Slots Evolved 8 | . . 2 . . . 2 . . 2 . . 2 . . . . Power . | . . . . . . . . . . . . . . . . . Propulsion 2 | . . 2 . . . . . . . . . . . . . . Utility 6 | . . . . . . 2 . . 2 . . 2 . . . . Weapon . | . . . . . . . . . . . . . . . . . Parts Attached 181 | 10 8 14 2 . 2 25 8 20 10 . 13 27 27 8 2 5 Power 22 | 1 1 1 . . . 4 2 3 1 . . 4 3 1 . 1 Engine 11 | 1 1 1 . . . 2 1 1 . . . 2 2 . . . Core 9 | . . . . . . 2 1 2 1 . . 2 1 . . . Reactor 2 | . . . . . . . . . . . . . . 1 . 1 Propulsion 62 | 2 . 6 . . 2 6 4 11 3 . 3 9 13 . 2 1 Treads 3 | . . . . . . . . . . . . . 3 . . . Leg 23 | 2 . . . . . 4 4 . . . . . 10 . 2 1 Wheel . | . . . . . . . . . . . . . . . . . Hover . | . . . . . . . . . . . . . . . . . Flight 36 | . . 6 . . 2 2 . 11 3 . 3 9 . . . . Utility 52 | 3 1 5 . . . 6 1 4 6 . 5 8 6 5 . 2 Device 17 | 2 1 3 . . . 2 . 1 1 . 1 4 1 1 . . Storage 5 | 1 . . . . . 1 . . . . . 1 2 . . . Processor 10 | . . 1 . . . 1 . 2 4 . . 1 1 . . . Hackware 11 | . . 1 . . . 1 . 1 1 . 4 2 . . . 1 Protection 9 | . . . . . . 1 1 . . . . . 2 4 . 1 Artifact . | . . . . . . . . . . . . . . . . . Weapon 45 | 4 6 2 2 . . 9 1 2 . . 5 6 5 2 . 1 Energy Gun 9 | . . . . . . 2 . . . . 2 . 3 1 . 1 Energy Cannon . | . . . . . . . . . . . . . . . . . Ballistic Gun 13 | 1 1 . 2 . . 4 1 2 . . . . 1 1 . . Ballistic Cannon 6 | . 1 2 . . . 3 . . . . . . . . . . Launcher . | . . . . . . . . . . . . . . . . . Special Weapon 8 | 3 4 . . . . . . . . . 1 . . . . . Impact Weapon . | . . . . . . . . . . . . . . . . . Slashing Weapon 5 | . . . . . . . . . . . 1 3 1 . . . Piercing Weapon 1 | . . . . . . . . . . . . 1 . . . . Special Melee Weapon 3 | . . . . . . . . . . . 1 2 . . . . Unidentified Prototypes 11 | . . 1 . . . 4 . 1 . . . 1 1 3 . . Parts Lost 40 | . 3 . 4 . 1 2 3 3 1 . . 8 9 1 3 2 Power 7 | . 1 . 1 . . . 1 1 . . . 1 1 . . 1 Propulsion 20 | . . . . . 1 2 1 2 1 . . 5 4 . 3 1 Utility 7 | . . . . . . . . . . . . 2 4 1 . . Weapon 6 | . 2 . 3 . . . 1 . . . . . . . . . Highest Loss Streak 7 | . 2 . 4 . 1 1 3 1 1 . . 2 7 1 3 1 To Critical Strikes 2 | . . . . . . . 1 . . . . . . 1 . . Average Slot Usage (%) 92 | . 92 87 84 77 77 88 96 93 87 100 99 91 93 100 96 87 Engine 2 | . 13 11 3 . . . 2 3 . . . . 1 . . . Core 4 | . . . . . . 8 6 4 6 7 7 4 4 . . . Leg 11 | . 25 3 . . . 8 33 7 . . . . 21 26 22 16 Flight 17 | . . 32 44 44 44 24 . 28 30 30 30 25 . . . . Device 7 | . 23 10 11 11 11 13 9 1 . . . 7 1 4 6 5 Storage 8 | . 1 . . . . 2 9 9 7 7 7 6 15 17 13 13 Processor 8 | . . 1 11 11 11 12 9 10 16 23 6 5 10 13 13 13 Hackware 11 | . . 5 . . . 2 . 8 8 15 30 30 10 6 6 10 Protection 3 | . . . . . . 3 9 1 . . . . 9 10 13 8 Energy Gun 2 | . . . . . . . . . . . 3 . 9 6 6 5 Ballistic Gun 6 | . 2 1 8 11 11 9 15 17 15 15 3 . 1 6 6 6 Ballistic Cannon 1 | . 2 20 5 . . 3 2 . . . . . . . . . Special Weapon 1 | . 21 . . . . . . . . . 1 . . . . . Slashing Weapon 1 | . . . . . . . . . . . . 4 . . . . Naked Turns . | . . . . . . . . . . . . . . . . . Heaviest Build 66 | 12 13 15 12 4 4 32 35 33 18 18 21 23 40 66 60 60 Greatest Support 100 | 20 20 20 20 20 20 40 40 40 19 19 22 24 100 100 100 65 Greatest Overweight (x) 4 | 1 1 3 . . . 1 1 2 . . . 1 4 . . 1 Average Overweight (x) . | . . . . . . . . . . . . . . . . . Largest Inventory Capacity 10 | 8 8 5 5 5 5 10 10 10 10 10 10 10 10 10 10 10 Average Capacity 8 | 7 5 5 5 5 5 6 10 10 10 10 10 10 10 10 10 10 Most Carried 10 | 4 6 5 5 5 5 10 10 10 10 10 10 10 10 10 10 9 Average Carried 8 | 1 4 4 4 5 4 5 9 9 9 10 9 9 9 9 9 8 Final Capacity 10 | 8 5 5 5 5 5 10 10 10 10 10 10 10 10 10 10 10 Final Carried 10 | 4 2 5 5 5 4 10 10 10 10 10 10 9 10 10 9 8 Class Distribution -------------------- 34% | Hacker-Sprinter 14% | Hacker-Mutant 11% | Scavenger-Mutant 11% | Scavenger-Skirmisher 9% | Mutant 6% | Scavenger-Scout 4% | Sprinter Dominant Class ---------------- Mutant | -10/Materials Hacker-Sprinter | -9/Materials Sprinter | -9/Mines Sprinter | -9/Exiles Scout | -8/Mines Scavenger-Scout | -8/Materials Scavenger-Skirmisher | -8/Garrison Hacker-Sprinter | -8/Materials Hacker-Sprinter | -7/Factory Hacker-Sprinter | -7/Waste Hacker-Sprinter | -7/Factory Hacker-Sprinter | -6/Factory Hacker-Mutant | -6/Extension Scavenger-Mutant | -6/Cetus Scavenger-Mutant | -6/Archives Scavenger-Mutant | -6/Hub_04(d) Resources | -11 -10 -9 -9 -9 -8 -8 -8 -8 -7 -7 -7 -6 -6 -6 -6 -6 ----------- Run | Scr Mat Mat Min Exi Min Mat Gar Mat Fac Was Fac Fac Ext Cet Arc Hub Matter Collected 3570 | 308 159 302 169 . . 721 454 409 25 . 134 343 339 123 . 84 Remotely . | . . . . . . . . . . . . . . . . . Salvage Created 5630 | 144 125 685 126 . . 580 944 363 . . 54 1099 1175 34 . 301 Parts 326 | 13 10 60 7 . . 44 65 30 . . 4 50 31 1 . 11 Haulers Intercepted 8 | . . 1 . . . 2 . 3 . . . 2 . . . . Recyclers Shooed 4 | 1 . 1 . . . . . . . . . 2 . . . . Parts Field Recycled . | . . . . . . . . . . . . . . . . . Retrieved Matter . | . . . . . . . . . . . . . . . . . Parts Self-Destructed . | . . . . . . . . . . . . . . . . . Prevented . | . . . . . . . . . . . . . . . . . Kills | -11 -10 -9 -9 -9 -8 -8 -8 -8 -7 -7 -7 -6 -6 -6 -6 -6 ------- Run | Scr Mat Mat Min Exi Min Mat Gar Mat Fac Was Fac Fac Ext Cet Arc Hub Combat Hostiles Destroyed 94 | . 3 20 7 . . 11 25 6 . . . 5 14 . . 3 Melee 8 | . . . . . . . . . . . . 5 3 . . . Guns 55 | . . . 6 . . 8 21 6 . . . . 11 . . 3 Cannons 30 | . 2 20 1 . . 3 4 . . . . . . . . . Classes Destroyed 15 | 2 2 7 1 . . 1 . . . . . 1 1 . . . Worker 5 | . . 2 . . . 2 . . . . . . . . . 1 Builder 3 | . . 1 . . . . . . . . . 2 . . . . Tunneler 6 | 6 . . . . . . . . . . . . . . . . Hauler 8 | . . 1 . . . 2 . 3 . . . 2 . . . . Recycler 9 | 1 . . . . . . . . . . . 4 3 . . 1 Operator 3 | . . 1 . . . . . . . . 2 . . . . . Watcher 11 | . 1 2 . . . 2 1 1 . . . 1 2 1 . . Swarmer 30 | . . 7 5 . . 3 10 3 . . . 1 1 . . . Grunt 28 | . 3 5 1 . . 5 8 . . . . . 4 . . 2 Brawler 2 | . . 1 . . . . 1 . . . . . . . . . Duelist 4 | . . . 1 . . . 2 . . . . . 1 . . . Sentry 24 | . . 7 . . . 2 4 3 . . . . 7 . . 1 Hunter 3 | . . . . . . 1 . . . . . 2 . . . . Programmer 2 | . . . . . . . . . . . . 2 . . . . Behemoth 1 | . . . . . . . . . . . . . 1 . . . Best Kill Streak 10 | 2 1 7 3 . . 5 10 2 . . 1 3 3 1 . 3 Combat Bots Only 9 | . 1 5 3 . . 5 9 2 . . . 2 3 . . 1 Max Kills in Single Turn 2 | 1 1 2 1 . . 1 2 2 . . 1 1 1 1 . 1 Gunslinging . | . . . . . . . . . . . . . . . . . Exploded . | . . . . . . . . . . . . . . . . . Melee 1 | . . . . . . . . . . . . 1 1 . . . Uniques/NPCs Destroyed . | . . . . . . . . . . . . . . . . . Combat | -11 -10 -9 -9 -9 -8 -8 -8 -8 -7 -7 -7 -6 -6 -6 -6 -6 -------- Run | Scr Mat Mat Min Exi Min Mat Gar Mat Fac Was Fac Fac Ext Cet Arc Hub Damage Taken 6117 | . 313 389 387 . 124 395 707 249 101 . . 869 1008 152 1121 302 Core 1303 | . 49 64 92 . 13 58 96 42 27 . . 375 319 . 122 46 Absorbed by Shields 250 | . . . . . . . 21 . . . . . 220 9 . . Core Remaining (%) 79 | 100 80 . . . 57 . . 64 . . 96 . . . . . Volleys Fired 371 | 34 19 36 36 . 8 53 52 51 . . 12 . 40 12 . 18 Largest 2 | 2 2 2 2 . 1 2 2 2 . . 2 . 2 2 . 2 Hottest 200 | 200 200 78 78 . 23 83 72 53 . . 61 . 161 115 . 115 Shots Fired 605 | 35 30 72 47 . 8 81 97 102 . . 18 . 61 18 . 36 Gun 439 | 26 2 . 31 . 8 62 78 102 . . 15 . 61 18 . 36 Cannon 128 | . 2 72 16 . . 19 19 . . . . . . . . . Launcher . | . . . . . . . . . . . . . . . . . Special 38 | 9 26 . . . . . . . . . 3 . . . . . Kinetic 477 | 26 4 72 47 . 8 77 97 102 . . 11 . 3 12 . 18 Thermal 125 | 9 26 . . . . 4 . . . . 4 . 58 6 . 18 Explosive . | . . . . . . . . . . . . . . . . . Electromagnetic . | . . . . . . . . . . . . . . . . . Robot Hit Streak 48 | 5 13 28 12 . 10 16 21 30 . . 24 . 48 14 . 28 Robot Miss Streak 3 | 1 2 2 3 . . 2 2 2 . . 2 . 3 2 . 2 Penetration Max 1 | . . . . . . 1 1 . . . . . . 1 . 1 Secondary Targets 7 | . . . . . . 1 3 1 . . . . 1 . . 1 Max Gunslinging Chain 1 | . . . . . . 1 1 1 . . . . 1 . . 1 Shots Hit Robots 501 | 25 18 49 28 . 8 62 61 89 . . 18 28 70 14 . 31 Core Hits 232 | 8 5 30 9 . 1 26 37 27 . . 6 12 53 7 . 11 Critical Kills 3 | . . . . . . . 1 . . . . . . . . 2 Critical Parts Destroyed 4 | . . . . . . 1 . . . . . . . 2 . 1 Critical Strikes 18 | . . 1 . . . 2 1 . . . 1 2 4 4 . 3 Burn 1 | . . . . . . . . . . . 1 . . . . . Destroy 9 | . . . . . . 1 1 . . . . . . 4 . 3 Blast 2 | . . 1 . . . 1 . . . . . . . . . . Sever 6 | . . . . . . . . . . . . 2 4 . . . Melee Attacks 61 | . . . . . . . . . . . 2 42 17 . . . Impact . | . . . . . . . . . . . . . . . . . Slashing 56 | . . . . . . . . . . . . 39 17 . . . Piercing . | . . . . . . . . . . . . . . . . . Sneak Attacks 13 | . . . . . . . . . . . 2 9 2 . . . Combat Hostiles 1 | . . . . . . . . . . . . 1 . . . . Follow-up Attacks . | . . . . . . . . . . . . . . . . . Damage Inflicted 11416 | 385 273 1151 428 . 93 1343 1433 899 . . 164 1452 2349 465 . 981 Guns 6936 | 241 13 . 306 . 93 963 1212 899 . . 164 . 1599 465 . 981 Cannons 1889 | . 23 1151 122 . . 372 221 . . . . . . . . . Explosions . | . . . . . . . . . . . . . . . . . Melee 2202 | . . . . . . . . . . . . 1452 750 . . . Ramming 8 | . . . . . . 8 . . . . . . . . . . Kinetic 6577 | 241 36 1151 428 . 93 1297 1433 899 . . 76 . 69 307 . 547 Thermal 2629 | 144 237 . . . . 38 . . . . 88 . 1530 158 . 434 Explosive . | . . . . . . . . . . . . . . . . . Electromagnetic . | . . . . . . . . . . . . . . . . . Impact . | . . . . . . . . . . . . . . . . . Slashing 2202 | . . . . . . . . . . . . 1452 750 . . . Piercing . | . . . . . . . . . . . . . . . . . Highest Corruption 8 | . . . . . . 1 1 1 . 8 8 . . . . . Average Corruption 2 | . . . . . . 1 1 1 . 8 7 . . . . . Corruption Purged 3 | . . . . . . . . . . . 3 . . . . . Corruption Blocked . | . . . . . . . . . . . . . . . . . Effects 34 | . . . . . . 2 2 12 . 1 17 . . . . . Message Errors 11 | . . . . . . . 1 3 . . 7 . . . . . Matter Fused 8 | . . . . . . 1 . 3 . . 4 . . . . . Heat Flow Errors 1 | . . . . . . . . . . . 1 . . . . . Energy Discharges 4 | . . . . . . . 1 1 . . 2 . . . . . Data Loss (minor) 5 | . . . . . . 1 . 4 . . . . . . . . Data Loss (major) 2 | . . . . . . . . . . 1 1 . . . . . Misfires 1 | . . . . . . . . . . . 1 . . . . . Alerts 2 | . . . . . . . . 1 . . 1 . . . . . Overload Shots . | . . . . . . . . . . . . . . . . . Overflow Damage 331 | . 4 . 2 . . 25 . . . . . 291 9 . . . Projectiles 31 | . 4 . 2 . . 25 . . . . . . . . . . Explosions . | . . . . . . . . . . . . . . . . . Melee 300 | . . . . . . . . . . . . 291 9 . . . Knockbacks 15 | . . 5 2 . . 5 3 . . . . . . . . . Impact 1 | . . . . . . 1 . . . . . . . . . . Kinetic 12 | . . 5 2 . . 2 3 . . . . . . . . . Secondary 2 | . . . . . . 2 . . . . . . . . . . Self-Inflicted Damage . | . . . . . . . . . . . . . . . . . Shots . | . . . . . . . . . . . . . . . . . Rammed . | . . . . . . . . . . . . . . . . . Targets Rammed 1 | . . . . . . 1 . . . . . . . . . . Kicked 1 | . . . . . . 1 . . . . . . . . . . Crushed . | . . . . . . . . . . . . . . . . . Highest Temperature 336 | 56 112 106 113 . . 291 91 37 2 . 163 2 336 84 . 61 Average Temperature 52 | 19 48 33 55 . . 79 29 9 2 . 39 2 98 30 . 20 Received Heat Transfer 1725 | . 264 228 42 . 9 243 172 99 24 . . 51 371 27 30 165 Effects 3 | . . . . . . . . . . . . . 3 . . . Interference 2 | . . . . . . . . . . . . . 2 . . . Matter Decay 1 | . . . . . . . . . . . . . 1 . . . Siege Activations . | . . . . . . . . . . . . . . . . . Robots Corrupted . | . . . . . . . . . . . . . . . . . Combat Hostiles . | . . . . . . . . . . . . . . . . . Parts Fried 1 | . . . . . . . . . . . . . 1 . . . Impact Corruptions . | . . . . . . . . . . . . . . . . . Robots Melted 1 | . 1 . . . . . . . . . . . . . . . Combat Hostiles 1 | . 1 . . . . . . . . . . . . . . . Parts Melted 11 | . . . . . . . . . . . 2 . 8 . . 1 Heat Transferred 5200 | 300 657 . . . . 74 . . . . 222 . 3043 312 . 592 Parts Sabotaged . | . . . . . . . . . . . . . . . . . Parts Stolen . | . . . . . . . . . . . . . . . . . Parts Stripped . | . . . . . . . . . . . . . . . . . Power Chain Reactions . | . . . . . . . . . . . . . . . . . Missiles Intercepted . | . . . . . . . . . . . . . . . . . Alert | -11 -10 -9 -9 -9 -8 -8 -8 -8 -7 -7 -7 -6 -6 -6 -6 -6 ------- Run | Scr Mat Mat Min Exi Min Mat Gar Mat Fac Was Fac Fac Ext Cet Arc Hub Peak Influence 1189 | 35 75 659 436 . 15 309 1189 503 277 76 89 211 345 351 124 148 Initial 499 | . 19 27 187 . . 1 60 499 62 31 46 11 46 . 50 22 Average 159 | 15 43 350 336 . 4 164 726 108 122 44 60 88 70 209 73 65 Maximum Alert Level 4 | . . 2 2 . . 1 4 2 1 . . 1 1 1 . . Low Security (%) 77 | 100 100 30 14 . 100 63 9 85 88 100 100 94 90 53 100 100 Level 1 13 | . . 21 54 . . 36 7 12 11 . . 5 9 46 . . Level 2 5 | . . 48 30 . . . 30 1 . . . . . . . . Level 3 1 | . . . . . . . 26 . . . . . . . . . Level 4 1 | . . . . . . . 25 . . . . . . . . . Level 5 . | . . . . . . . . . . . . . . . . . High Security . | . . . . . . . . . . . . . . . . . Max Security . | . . . . . . . . . . . . . . . . . Squads Dispatched 18 | . 1 1 . . . 1 . 1 . . 4 8 1 . . 1 Investigation 9 | . 1 . . . . . . . . . 2 5 1 . . . Extermination 2 | . . . . . . . . . . . 1 1 . . . . Reinforcement 7 | . . 1 . . . 1 . 1 . . 1 2 . . . 1 Assault . | . . . . . . . . . . . . . . . . . Garrison . | . . . . . . . . . . . . . . . . . Intercept . | . . . . . . . . . . . . . . . . . Searches Triggered . | . . . . . . . . . . . . . . . . . Construction Impeded . | . . . . . . . . . . . . . . . . . Haulers Reinforced 2 | . . . . . . . . . . . . 1 . . . 1 Active Scanning Responses . | . . . . . . . . . . . . . . . . . Cargo Convoy Interrupts . | . . . . . . . . . . . . . . . . . Stealth | -11 -10 -9 -9 -9 -8 -8 -8 -8 -7 -7 -7 -6 -6 -6 -6 -6 --------- Run | Scr Mat Mat Min Exi Min Mat Gar Mat Fac Was Fac Fac Ext Cet Arc Hub Distress Signals 12 | . . . . . . 1 . 1 1 . . 1 4 1 1 2 Communications Jammed . | . . . . . . . . . . . . . . . . . Distress Signals . | . . . . . . . . . . . . . . . . . Times Spotted 311 | . 10 24 13 . 4 34 34 39 13 5 4 53 41 11 18 8 Peak Tracking Total 14 | . 3 4 5 . 4 7 11 6 5 5 1 7 6 5 14 6 Tactical Retreats 53 | . 2 . 3 . . 8 2 11 7 . . 18 1 . 1 . Traps | -11 -10 -9 -9 -9 -8 -8 -8 -8 -7 -7 -7 -6 -6 -6 -6 -6 ------- Run | Scr Mat Mat Min Exi Min Mat Gar Mat Fac Was Fac Fac Ext Cet Arc Hub Traps Triggered 21 | . 2 . . . . 2 5 . 2 . 1 4 2 . . 3 Indirectly . | . . . . . . . . . . . . . . . . . Trap Hack Attempts . | . . . . . . . . . . . . . . . . . Triggered . | . . . . . . . . . . . . . . . . . Disarmed . | . . . . . . . . . . . . . . . . . Reprogrammed . | . . . . . . . . . . . . . . . . . Reused . | . . . . . . . . . . . . . . . . . Traps Extracted . | . . . . . . . . . . . . . . . . . Installed . | . . . . . . . . . . . . . . . . . Triggered . | . . . . . . . . . . . . . . . . . Machines | -11 -10 -9 -9 -9 -8 -8 -8 -8 -7 -7 -7 -6 -6 -6 -6 -6 ---------- Run | Scr Mat Mat Min Exi Min Mat Gar Mat Fac Was Fac Fac Ext Cet Arc Hub Machines Disabled 10 | . . . . . . 1 4 . . . . . 1 2 1 1 Max in Single Turn 1 | . . . . . . 1 1 . . . . . 1 . . 1 Garrison Access 5 | . . . . . . . . . . . 1 4 . . . . Garrison Relay 4 | . . . . . . . 4 . . . . . . . . . Machines Sabotaged . | . . . . . . . . . . . . . . . . . Garrisons Compromised . | . . . . . . . . . . . . . . . . . Overloaded Fab Kills . | . . . . . . . . . . . . . . . . . Hacking | -11 -10 -9 -9 -9 -8 -8 -8 -8 -7 -7 -7 -6 -6 -6 -6 -6 --------- Run | Scr Mat Mat Min Exi Min Mat Gar Mat Fac Was Fac Fac Ext Cet Arc Hub Machines Accessed 70 | . 3 6 . 1 . 6 . 9 6 . 8 15 11 3 . 2 Terminals 59 | . 3 6 . . . 5 . 8 3 . 7 11 11 3 . 2 Fabricators 2 | . . . . . . . . . 2 . . . . . . . Repair Stations . | . . . . . . . . . . . . . . . . . Recycling Units . | . . . . . . . . . . . . . . . . . Scanalyzers 1 | . . . . . . . . . 1 . . . . . . . Garrison Access 7 | . . . . . . 1 . 1 . . 1 4 . . . . Total Hacks 170 | . 7 18 . 1 . 20 . 32 12 . 19 37 14 6 . 4 Successful 106 | . 3 9 . 1 . 15 . 23 8 . 8 23 11 3 . 2 Failed 61 | . 4 8 . . . 4 . 9 4 . 11 13 3 3 . 2 Catastrophic 6 | . 1 . . . . . . . . . 4 1 . . . . Database Lockouts 3 | . . 1 . . . 1 . . . . . 1 . . . . Manual 145 | . 7 17 . 1 . 19 . 31 9 . 18 35 3 1 . 4 Terminals 155 | . 7 18 . . . 18 . 30 7 . 18 33 14 6 . 4 Fabricators 3 | . . . . . . . . . 3 . . . . . . . Repair Stations . | . . . . . . . . . . . . . . . . . Recycling Units . | . . . . . . . . . . . . . . . . . Scanalyzers 2 | . . . . . . . . . 2 . . . . . . . Garrison Access 9 | . . . . . . 2 . 2 . . 1 4 . . . . Terminal Hacks 57 | . 1 6 . 1 . 10 . 13 . . 2 11 10 3 . . Record 5 | . . 1 . . . . . 1 . . . . 1 2 . . Robot Analysis 12 | . . 3 . . . 5 . 2 . . . 2 . . . . Prototype ID Bank 1 | . . . . . . 1 . . . . . . . . . . Open Door 9 | . . . . . . . . . . . . . 8 1 . . Level Access Points 1 | . . . . . . . . 1 . . . . . . . . Branch Access Points 5 | . . 1 . . . . . 1 . . 1 2 . . . . Emergency Access Points 1 | . . . . . . 1 . . . . . . . . . . Terminal Index 6 | . . 1 . . . 1 . 1 . . 1 1 1 . . . Fabricator Index 1 | . . . . . . . . 1 . . . . . . . . Garrison Index 1 | . . . . . . . . 1 . . . . . . . . Alert Level 1 | . . . . . . 1 . . . . . . . . . . Unreport Threat 7 | . . . . . . . . 5 . . . 2 . . . . Recall Investigation 3 | . 1 . . . . . . . . . . 2 . . . . Recall Assault 1 | . . . . . . . . . . . . 1 . . . . Zone Layout 2 | . . . . . . 1 . . . . . 1 . . . . EX-Prototype ID Bank 1 | . . . . 1 . . . . . . . . . . . . Fabricator Hacks 1 | . . . . . . . . . 1 . . . . . . . Network Status 1 | . . . . . . . . . 1 . . . . . . . Repair Station Hacks . | . . . . . . . . . . . . . . . . . Recycling Unit Hacks . | . . . . . . . . . . . . . . . . . Scanalyzer 2 | . . . . . . . . . 2 . . . . . . . Insert Component 1 | . . . . . . . . . 1 . . . . . . . Analyze 1 | . . . . . . . . . 1 . . . . . . . Garrison Access Hacks 7 | . . . . . . 1 . 1 . . 1 4 . . . . Unlock Access 2 | . . . . . . 1 . 1 . . . . . . . . Seal Access 5 | . . . . . . . . . . . 1 4 . . . . Unauthorized Hacks 39 | . 2 3 . . . 4 . 9 5 . 5 8 1 . . 2 Terminals 36 | . 2 3 . . . 4 . 8 3 . 5 8 1 . . 2 Track 1 | . . . . . . 1 . . . . . . . . . . Assimilate 6 | . . . . . . . . 2 1 . 2 1 . . . . Botnet 28 | . 2 3 . . . 2 . 6 2 . 3 7 1 . . 2 Detonate 1 | . . . . . . 1 . . . . . . . . . . Fabricators 2 | . . . . . . . . . 2 . . . . . . . Report 2 | . . . . . . . . . 2 . . . . . . . Repair Stations . | . . . . . . . . . . . . . . . . . Recycling Units . | . . . . . . . . . . . . . . . . . Scanalyzers . | . . . . . . . . . . . . . . . . . Garrison Access 1 | . . . . . . . . 1 . . . . . . . . Watchers 1 | . . . . . . . . 1 . . . . . . . . Data Cores Recovered 1 | . . 1 . . . . . . . . . . . . . . Used 1 | . . 1 . . . . . . . . . . . . . . Hacking Detections 52 | . 3 5 . . . 4 . 8 4 . 7 11 5 3 . 2 Full Trace Events 4 | . 1 . . . . . . . . . 1 2 . . . . Feedback Events . | . . . . . . . . . . . . . . . . . Feedback Blocked . | . . . . . . . . . . . . . . . . . Robot Schematics Acquired . | . . . . . . . . . . . . . . . . . Robots Built . | . . . . . . . . . . . . . . . . . Authchips . | . . . . . . . . . . . . . . . . . Time . | . . . . . . . . . . . . . . . . . Total Robot Build Rating . | . . . . . . . . . . . . . . . . . Part Schematics Acquired . | . . . . . . . . . . . . . . . . . Parts Built . | . . . . . . . . . . . . . . . . . Authchips . | . . . . . . . . . . . . . . . . . Time . | . . . . . . . . . . . . . . . . . Total Part Build Rating . | . . . . . . . . . . . . . . . . . Parts Repaired . | . . . . . . . . . . . . . . . . . Time . | . . . . . . . . . . . . . . . . . Parts Recycled . | . . . . . . . . . . . . . . . . . Recycled Matter . | . . . . . . . . . . . . . . . . . Retrieved Matter . | . . . . . . . . . . . . . . . . . Retrieved Components . | . . . . . . . . . . . . . . . . . Parts Scanalyzed 1 | . . . . . . . . . 1 . . . . . . . Part Schematics Acquired . | . . . . . . . . . . . . . . . . . Parts Damaged . | . . . . . . . . . . . . . . . . . Bothacking | -11 -10 -9 -9 -9 -8 -8 -8 -8 -7 -7 -7 -6 -6 -6 -6 -6 ------------ Run | Scr Mat Mat Min Exi Min Mat Gar Mat Fac Was Fac Fac Ext Cet Arc Hub Used RIF Installer 1 | . . . . . . . 1 . . . . . . . . . Robots Hacked 3 | . . . . . . . . . . . 2 1 . . . . Non-combat 3 | . . . . . . . . . . . 2 1 . . . . Combat . | . . . . . . . . . . . . . . . . . Robot Hacks Applied 7 | . . . . . . . . . . . 5 2 . . . . parse_system 2 | . . . . . . . . . . . 1 1 . . . . no_distress 1 | . . . . . . . . . . . 1 . . . . . find_recycling 1 | . . . . . . . . . . . 1 . . . . . ignore_parts 1 | . . . . . . . . . . . 1 . . . . . check_alert 1 | . . . . . . . . . . . 1 . . . . . map_route 1 | . . . . . . . . . . . . 1 . . . . Relay Couplers Released 14 | . . . . . . . 14 . . . . . . . . . Machine Destruction 14 | . . . . . . . 14 . . . . . . . . . Attached 4 | . . . . . . . . . . . 4 . . . . . Fabnet Peak Effective % . | . . . . . . . . . . . . . . . . . Robots Rewired 26 | . . . . . . . 6 . . . . . 20 . . . Allies Hacked . | . . . . . . . . . . . . . . . . . Hacks Repelled . | . . . . . . . . . . . . . . . . . Allies | -11 -10 -9 -9 -9 -8 -8 -8 -8 -7 -7 -7 -6 -6 -6 -6 -6 -------- Run | Scr Mat Mat Min Exi Min Mat Gar Mat Fac Was Fac Fac Ext Cet Arc Hub Total Allies 43 | . . . . . . . 6 1 1 . 2 1 30 2 . . Largest Group 17 | . . . . . . . 6 3 1 . 1 1 17 11 7 . Highest-Rated Group 505 | . . . . . . . 93 45 26 . 26 26 505 470 418 . Highest-Rated Ally 159 | . . . . . . . 16 15 26 . 26 26 159 152 110 . Total Orders 1 | . . . . . . . . . . . 1 . . . . . FOLLOW 1 | . . . . . . . . . . . 1 . . . . . Ally Attacks 312 | . . . . . . . 26 12 . . . . 161 77 36 . Total Damage 6960 | . . . . . . . 445 202 . . . . 3186 1943 1184 . Kills 52 | . . . . . . . 9 5 . . . . 17 14 7 . Allies Corrupted . | . . . . . . . . . . . . . . . . . Allies Melted 1 | . . . . . . . . . . . . . 1 . . . Intel | -11 -10 -9 -9 -9 -8 -8 -8 -8 -7 -7 -7 -6 -6 -6 -6 -6 ------- Run | Scr Mat Mat Min Exi Min Mat Gar Mat Fac Was Fac Fac Ext Cet Arc Hub Robot Analysis Total 12 | . . 3 . . . 5 . 2 . . . 2 . . . . Derelict Logs Recovered 1 | . . . 1 . . . . . . . . . . . . . Drone Launches . | . . . . . . . . . . . . . . . . . Drone Recoveries . | . . . . . . . . . . . . . . . . . Exploration | -11 -10 -9 -9 -9 -8 -8 -8 -8 -7 -7 -7 -6 -6 -6 -6 -6 ------------- Run | Scr Mat Mat Min Exi Min Mat Gar Mat Fac Was Fac Fac Ext Cet Arc Hub Turns Passed 11679 | 324 639 491 249 136 38 1496 842 1263 470 49 544 2216 2098 407 189 228 Spaces Moved 12083 | 188 388 697 287 235 62 1502 460 1805 912 173 926 2691 1211 284 155 107 Core 15 | 9 . . . . . . . . . . . . 6 . . . Treads 74 | . . . . . . . . . . . . . 74 . . . Legs 3139 | 179 388 55 . . . 276 460 147 . . . . 1088 284 155 107 Wheels . | . . . . . . . . . . . . . . . . . Hover . | . . . . . . . . . . . . . . . . . Flight 8855 | . . 642 287 235 62 1226 . 1658 912 173 926 2691 43 . . . Fastest Speed 26 | 50 120 31 31 31 31 31 120 26 26 27 27 27 28 120 120 120 Average Speed 55 | 116 130 44 31 31 31 52 132 35 26 27 27 30 120 120 120 139 Slowest Speed 290 | 120 190 290 31 31 31 190 190 187 27 27 28 110 250 120 120 190 Overloaded Moves . | . . . . . . . . . . . . . . . . . Propulsion Burnouts . | . . . . . . . . . . . . . . . . . Robots Hopped 104 | . . 6 7 . . 18 . 17 13 . 16 27 . . . . Cave-ins Triggered . | . . . . . . . . . . . . . . . . . Exploration Rate (%) 56 | 8 54 53 58 62 24 62 59 79 22 90 20 63 95 88 99 16 Regions Visited 16 Branch Regions 7 Pre-discovered Areas 1 | . . . 1 . . . . . . . . . . . . . Known Exits Taken 7 | . . 1 . . . 1 . 1 . . . 1 1 1 1 . Unknown Exits Taken 6 | 1 1 . 1 1 1 . . . . . 1 . . . . . Scrap Searched 3 | . . . 3 . . . . . . . . . . . . . Spaces Dug 15 | 1 . . . . . 1 . . . . . 13 . . . . Terrain Destroyed 30 | 1 1 4 3 . . 3 . . . . . 13 . . . 5 Melee 13 | . . . . . . . . . . . . 13 . . . . Projectile 17 | 1 1 4 3 . . 3 . . . . . . . . . 5 AOE . | . . . . . . . . . . . . . . . . . Terrain Rammed . | . . . . . . . . . . . . . . . . . Walls Destroyed . | . . . . . . . . . . . . . . . . . Machines Disabled . | . . . . . . . . . . . . . . . . . Actions | -11 -10 -9 -9 -9 -8 -8 -8 -8 -7 -7 -7 -6 -6 -6 -6 -6 --------- Run | Scr Mat Mat Min Exi Min Mat Gar Mat Fac Was Fac Fac Ext Cet Arc Hub Total 16222 | 235 457 800 393 297 72 2124 606 2343 1126 174 1188 4016 1751 332 158 150 Wait 3251 | 1 35 43 73 61 . 517 24 455 209 2 227 1240 331 19 . 14 Move 11869 | 187 387 685 274 234 61 1466 458 1771 887 172 894 2639 1210 283 154 107 Hop 94 | . . 5 5 . . 17 . 16 12 . 15 24 . . . . Pick Up 73 | 1 2 4 2 1 . 19 4 7 2 . 8 15 5 2 1 . Fast Attach 104 | 9 4 10 1 . . 12 2 11 6 . 5 15 19 7 . 3 Attach 62 | . 4 2 1 . 2 13 3 6 3 . 7 12 4 1 2 2 Detach 47 | 2 3 5 . . 1 9 1 4 3 . 8 7 3 . . 1 Swap 16 | 1 . 2 . . . . 3 4 1 . 1 . 4 . . . Drop 111 | . 3 8 1 1 . 17 6 18 3 . 9 22 15 8 . . Fire 371 | 34 19 36 36 . 8 53 52 51 . . 12 . 40 12 . 18 Melee 61 | . . . . . . . . . . . 2 42 17 . . . Ram . | . . . . . . . . . . . . . . . . . Kick 1 | . . . . . . 1 . . . . . . . . . . Crush . | . . . . . . . . . . . . . . . . . Escape Stasis 27 | . . . . . . . 14 . . . . . 8 . . 5 Rewire 135 | . . . . . . . 39 . . . . . 95 . 1 . Trap . | . . . . . . . . . . . . . . . . . Miscellaneous . | . . . . . . . . . . . . . . . . . Route ------- -11/Scrapyard -10/Materials (discovered 2 exits: *Mat / [*Min]) -9/Materials (discovered 2 exits: *Mat / *Min) -9/Mines (discovered 4 exits: *Mat x2 / *Exi / [*Zio]) -9/Exiles -8/Mines -8/Materials (discovered 6 exits: *Fac x3 / *Sto x2 / Gar) -8/Garrison (discovered 2 exits: *Mat x2) -8/Materials (discovered 6 exits: *Fac x3 / *Sto x2 / Gar) -7/Factory (discovered 2 exits: *Fac / *Low) -7/Waste -7/Factory (discovered 3 exits: *Fac / *Low x2) -6/Factory (discovered 7 exits: *Fac x3 / *Low x2 / *Ext x2) -6/Extension (discovered 3 exits: *Fac x2 / *Cet) -6/Cetus (discovered 2 exits: *Fac / *Arc) -6/Archives (discovered 3 exits: *Fac / *Hub x2) -6/Hub_04(d) History --------- Turn | Location | Event 3 | -11/Scrapyard | Discovered new exit (range 15) 325 | -11/Scrapyard | Entered Materials 329 | -10/Materials | Build established: Mutant 705 | -10/Materials | Discovered new exit (range 12) 843 | -10/Materials | Discovered new exit (range 15) 964 | -10/Materials | Entered another Materials area 964 | -9/Materials | Evolved 2 slots: Propulsion x2 1200 | -9/Materials | Discovered new exit (range 3) 1247 | -9/Materials | Identified exit to Mines 1284 | -9/Materials | Central database locked down 1455 | -9/Materials | Entered Mines 1460 | -9/Mines | Learned location of Zion (-7) 1462 | -9/Mines | Discovered new exit (range 11) 1470 | -9/Mines | Discovered new exit (range 5) 1605 | -9/Mines | Lost 4 parts (1p3w) 1647 | -9/Mines | A Derelict revealed a hidden shortcut to a safe place 1664 | -9/Mines | Deemed a non-threat by the Exiles lab entrance 1664 | -9/Mines | Discovered new exit (range 5) 1704 | -9/Mines | Entered Exiles 1713 | -9/Exiles | Met 8R-AWN 1717 | -9/Exiles | Met EX-HEX 1726 | -9/Exiles | Met EX-BIN 1730 | -9/Exiles | Build established: Sprinter 1731 | -9/Exiles | Aligned with FarCom system 1731 | -9/Exiles | Given EX-Vault access code 1770 | -9/Exiles | Opened EX-Vault 1777 | -9/Exiles | Found Cloak of Protection 1786 | -9/Exiles | Warned to stay clear of 0b10 Research branches 1795 | -9/Exiles | Met EX-DEC 1836 | -9/Exiles | Discovered new exit (range 14) 1840 | -9/Exiles | Left Exiles lab with Cloak of Protection 1840 | -9/Exiles | Entered Mines 1875 | -8/Mines | Discovered new exit (range 9) 1878 | -8/Mines | Entered Materials 1878 | -8/Materials | Evolved 2 slots: Utility x2 1878 | -8/Materials | Discovered new exit (range 8) 1997 | -8/Materials | Discovered new exit (range 16) 2008 | -8/Materials | Discovered new exit (range 9) 2194 | -8/Materials | Discovered new exit (range 11) 2272 | -8/Materials | Build established: Scavenger-Scout 2568 | -8/Materials | Identified exit to Garrison 2757 | -8/Materials | Central database locked down 2761 | -8/Materials | Discovered new exit (range 16) 3128 | -8/Materials | Build established: Scavenger-Skirmisher 3374 | -8/Materials | Entered Garrison 3430 | -8/Garrison | Triggered checkpoint 3475 | -8/Garrison | Garrison Relay disabled 3488 | -8/Garrison | Destroyed 8 combat bots 3514 | -8/Garrison | Triggered checkpoint 3682 | -8/Garrison | Lost 3 parts (1p1n1w) 3683 | -8/Garrison | Destroyed 9 combat bots 3766 | -8/Garrison | Triggered checkpoint 3772 | -8/Garrison | Triggered checkpoint 3795 | -8/Garrison | Triggered checkpoint 3850 | -8/Garrison | Triggered checkpoint 3905 | -8/Garrison | Garrison Relay disabled 3956 | -8/Garrison | Triggered checkpoint 3994 | -8/Garrison | Garrison Relay disabled 4028 | -8/Garrison | Discovered new exit (range 14) 4079 | -8/Garrison | Spotted B-75 Beast 4079 | -8/Garrison | Spotted B-75 Beast 4148 | -8/Garrison | Triggered checkpoint 4164 | -8/Garrison | Garrison Relay disabled 4183 | -8/Garrison | Discovered new exit (range 13) 4210 | -8/Garrison | Installed Relay Interface Framework 4216 | -8/Garrison | Entered Materials 4216 | -8/Materials | Accompanied by 3 allies 4250 | -8/Materials | Identified exit to Storage 4250 | -8/Materials | Identified exit to Factory 4499 | -8/Materials | Identified exit to Garrison 4992 | -8/Materials | Build established: Hacker-Sprinter 5479 | -8/Materials | Entered Factory 5479 | -7/Factory | Evolved 2 slots: Utility x2 5822 | -7/Factory | Discovered new exit (range 12) 5913 | -7/Factory | Discovered new exit (range 4) 5949 | -7/Factory | Sucked down chute 5949 | -7/Factory | Entered Waste 5964 | -7/Waste | EMP discharged 5973 | -7/Waste | Spotted C-40 Crusher 5975 | -7/Waste | Spotted C-40 Crusher 5981 | -7/Waste | Spotted C-40 Crusher 5982 | -7/Waste | Spotted C-40 Crusher 5984 | -7/Waste | Spotted C-40 Crusher 5988 | -7/Waste | Spotted C-40 Crusher 5991 | -7/Waste | Discovered new exit (range 11) 5998 | -7/Waste | Entered Factory 6425 | -7/Factory | Discovered new exit (range 16) 6480 | -7/Factory | Identified exit to Lower Caves 6512 | -7/Factory | Discovered new exit (range 10) 6542 | -7/Factory | Entered another Factory area 6542 | -6/Factory | Accompanied by 1 ally 6542 | -6/Factory | Evolved 2 slots: Utility x2 6591 | -6/Factory | Discovered new exit (range 6) 6669 | -6/Factory | Discovered new exit (range 22) 6903 | -6/Factory | Discovered new exit (range 22) 7149 | -6/Factory | Discovered new exit (range 11) 7169 | -6/Factory | Identified exit to Lower Caves 7169 | -6/Factory | Identified exit to Extension 7169 | -6/Factory | Central database locked down 7512 | -6/Factory | Spotted B-75 Beast 7561 | -6/Factory | Discovered new exit (range 20) 8758 | -6/Factory | Entered Extension 8758 | -6/Extension | Accompanied by 1 ally 8814 | -6/Extension | Core integrity fell below 50% 8862 | -6/Extension | Lost 7 parts (1p4n2u) 8965 | -6/Extension | Rescued a captive Derelict 9089 | -6/Extension | Build established: Hacker-Mutant 9351 | -6/Extension | Rescued a captive Derelict 9394 | -6/Extension | Spotted B-75 Beast 9423 | -6/Extension | Build established: Commander-Mutant 9444 | -6/Extension | Allies destroyed B-75 Beast 9454 | -6/Extension | Spotted B-75 Beast 9466 | -6/Extension | Destroyed B-75 Beast 9499 | -6/Extension | Discovered new exit (range 3) 9520 | -6/Extension | Identified exit to Factory 9610 | -6/Extension | Discovered exit to Factory (range 22) 9610 | -6/Extension | Discovered new exit (range 22) 9700 | -6/Extension | Rescued A7 9723 | -6/Extension | Build established: Hacker-Mutant 9769 | -6/Extension | Core integrity fell below 20% 9827 | -6/Extension | Rescued a captive Derelict 9828 | -6/Extension | Rescued a captive Derelict 9852 | -6/Extension | Rescued a captive Derelict 9853 | -6/Extension | Rescued a captive Derelict 9882 | -6/Extension | Rescued a captive Derelict 9883 | -6/Extension | Rescued a captive Derelict 9903 | -6/Extension | Rescued a captive Derelict 10158 | -6/Extension | Build established: Scavenger-Mutant 10487 | -6/Extension | Build established: Hacker-Mutant 10843 | -6/Extension | Identified exit to Cetus 10856 | -6/Extension | Entered Cetus 10856 | -6/Cetus | Accompanied by 11 allies (A7) 10861 | -6/Cetus | Acquired a Cetus Manufacturing Module code from A7 10868 | -6/Cetus | Spotted Cetus Guard 10868 | -6/Cetus | Spotted Cetus Guard 10872 | -6/Cetus | Spotted Cetus Guard 10878 | -6/Cetus | Spotted Cetus Guard 10888 | -6/Cetus | Allies destroyed Cetus Guard 10891 | -6/Cetus | Allies destroyed Cetus Guard 10893 | -6/Cetus | Allies destroyed Cetus Guard 10899 | -6/Cetus | Allies destroyed Cetus Guard 11002 | -6/Cetus | Started Cetus Manufacturing Module 11010 | -6/Cetus | Escorted A7 to Cetus Mainframe 11027 | -6/Cetus | Manufactured an Enhanced Grunt 11031 | -6/Cetus | Discovered new exit (range 21) 11052 | -6/Cetus | Manufactured an Enhanced Grunt 11056 | -6/Cetus | Spotted Cetus Guard 11056 | -6/Cetus | Spotted Cetus Guard 11056 | -6/Cetus | Spotted Cetus Guard 11056 | -6/Cetus | Spotted Cetus Guard 11062 | -6/Cetus | Cetus Manufacturing Module disabled 11065 | -6/Cetus | Allies destroyed Cetus Guard 11067 | -6/Cetus | Allies destroyed Cetus Guard 11072 | -6/Cetus | Discovered exit to Factory (range 22) 11074 | -6/Cetus | Allies destroyed Cetus Guard 11084 | -6/Cetus | Allies destroyed Cetus Guard 11093 | -6/Cetus | Met Revision 17 11215 | -6/Cetus | Build established: Scavenger-Mutant 11251 | -6/Cetus | Identified exit to Archives 11263 | -6/Cetus | Entered Archives 11263 | -6/Archives | Accompanied by 7 allies (A7) 11269 | -6/Archives | Received a hacking code to weaken MAIN.C 11279 | -6/Archives | Met Zhirov 11280 | -6/Archives | Discovered new exit (range 22) 11285 | -6/Archives | Reinforcements dispatched to Archives 11297 | -6/Archives | Unable to access archive contents 11327 | -6/Archives | Identified exit to Hub_04(d) 11330 | -6/Archives | Reinforcements dispatched to Archives 11350 | -6/Archives | Zhirov detonated Archives 11358 | -6/Archives | Discovered exit to Hub_04(d) (range 22) 11363 | -6/Archives | Discovered exit to Factory (range 22) 11381 | -6/Archives | Lost 3 parts (3n) 11452 | -6/Archives | Entered Hub_04(d) 11680 | -6/Hub_04(d) | Destroyed by G-50 Soldier with Heavy Laser Last Messages --------------- 11661_ Triggered Blade Trap. 11661_ Massive razor-sharp blades shoot up from within the floor. 11661_ Adv. Heat Sink severed. 11662_ K-01 Serf collects debris. 11663_ Triggered Blade Trap. 11663_ Massive razor-sharp blades shoot up from within the floor. 11663_ Centrium Medium Armor Plating severed. 11663_ Adv. Variable Charge Gun severed. 11663_ Carbon-fiber Leg severed. 11665_ Acquired Centrium Medium Armor Plating. 11668_ Acquired Carbon-fiber Leg. 11670_ U-05 Engineer lays Concrete. 11674_ Acquired Adv. Variable Charge Gun. 11676_ Slug penetrates G-50 Soldier. 11676_ G-50 Soldier suffers critical hit (Destroy). 11676_ G-50 Soldier destroyed. 11678_ K-01 Serf collects debris. 11679_ Destroyed Lgt. Angular Momentum Engine. 11679_ Slug penetrates G-50 Soldier. [Achievement: Overachiever] Map ----- +----------------------------------------------------+ | #???# "" "" #? ????? ?"""?????????????? | | #???# "" "" # """????? ???????????????? | | ?? ?????? # ??###+###??????????????? | | ####+############+######+#### #??????????????? | | T" ######## """???? | | "" / ""????? | | ^^ ##+####????????? | | ##############+##+######+#### #??????????????? | | ???????????? #?#[ ## %##??????????????? | | ??????????# #?# "## ##??????????????? | | ??????????# #?# "## ##??????????????? | | ??????????# #?# "## ##??????????????? | | ??????????# #?# T## #???????????????? | | ??????????# #?# ] "## #???????????????? | | ??????????# #?# "## #???????????????? | | ??????????# [ ] #?#w "## #???????????????? | | ??????????# #?# ## #???????????????? | | ??????????##########?# """ ## #???????????????? | | ?????????????????????# ## #???????????????? | | ?????????????????????# """ ## #???????????????? | | ?????????????????????# ## #???????????????? | | ?????????????????????######### #???????????????? | | ?????????????????????????????# #???????????????? | | ??????????????##?????????????# #???????????????? | | ?????????###### ##########!% #???????????????? | | ????# u @ !g*%! #???????????????? | | ????+ k g*%! #???????????????? | | ????# u ^ R=!== #???????????????? | | ??????# ####### ##############???????????????? | | ??????????????## ???????????????????????????????? | | ???????????????#?????????????????????????????????? | | ?????????????????????????????????????????????????? | | ?????????????????????????????????????????????????? | | ?????????????????????????????????????????????????? | | ?????????????????????????????????????????????????? | | ?????????????????????????????????????????????????? | | ?????????????????????????????????????????????????? | | ?????????????????????????????????????????????????? | | ?????????????????????????????????????????????????? | | ?????????????????????????????????????????????????? | | ?????????????????????????????????????????????????? | | ?????????????????????????????????????????????????? | | ?????????????????????????????????????????????????? | | ?????????????????????????????????????????????????? | | ?????????????????????????????????????????????????? | | ?????????????????????????????????????????????????? | | ?????????????????????????????????????????????????? | | ?????????????????????????????????????????????????? | | ?????????????????????????????????????????????????? | | ?????????????????????????????????????????????????? | +----------------------------------------------------+ Best States ------------- Heat Dissipation 56 Energy Generation 25 Energy Capacity 1100 Matter Stores 300 Matter Capacity 300 Sight Range 22 Terrain Scan Range 16 Terrain Scan Density 85 ECM Strength 2 Cloak Strength 5 Armor Coverage 675 Resistance: KI 40 Resistance: TH 30 Resistance: EX 20 Resistance: EM 20 Resistance: I 20 Resistance: S 20 Resistance: P 20 Phase Shifting 10 Evasion (%) 72 Targeting Accuracy 30 Recoil Reduction 3 Offensive Hacking 40 Defensive Hacking 10 Relay Coupler Types 4 Relay Coupler Value 134 Item Schematics ----------------- None Robot Schematics ------------------ None Fabricated ------------ Nothing Alien Tech Used ----------------- None Achievements -------------- Main Advantage Overachiever Project G-00 Revising The Future Challenges ------------ None Game ------ Seed ColdLongswordBoregun Manual? 0 Play Time 02:34:41 Cumulative 50.2 hours Start 2022.05.02 @ 21:30:55 End 2022.05.05 @ 08:57:42 Sessions 3 Manual Loads 0 Difficulty Adventurer Special Mode None Game No. 30 Rogue 0 Adventurer 30 Explorer 0 Win Type - Total 2 Types 1/0/0/1/0/0/0/0/0 Lore% 30 Gallery% 52 Achievement% 50 Wizard Run 0 Options --------- ASCII 0 Keyboard 1 Movement Numpad Keybinds 0 Fullscreen 2 Font 18/SmallcapsGlow Map View 76x50 Tactical HUD 1 Map Filters NONE Filters NONE Steam 0 RUN: f5559339-6609-4bac-84b9-8505b7e3a168